[Event "Late-Titled-Tuesday-Blitz-September-26-2023"]
[Site "Chess.com"]
[Date "2023.09.26"]
[Round "2"]
[White "Manukyan_Artak"]
[Black "Horokoskii"]
[Result "1-0"]
[WhiteElo "2434"]
[BlackElo "2094"]
[TimeControl "180+1"]
[EndTime "14:15:10 PDT"]
[Termination "Manukyan_Artak won by checkmate"]

1. e4 {[%clk 0:02:58.5]} 1... e6 {[%clk 0:02:58.7]} 2. d4 {[%clk 0:02:58.5]}
2... d5 {[%clk 0:02:55.3]} 3. e5 {[%clk 0:02:59.4]} 3... c5 {[%clk 0:02:55.2]}
4. c3 {[%clk 0:03:00.3]} 4... Nc6 {[%clk 0:02:55.5]} 5. Nf3 {[%clk 0:03:00.8]}
5... Bd7 {[%clk 0:02:54]} 6. a3 {[%clk 0:03:01.3]} 6... c4 {[%clk 0:02:52.9]} 7.
Nbd2 {[%clk 0:03:00]} 7... Na5 {[%clk 0:02:51.9]} 8. Rb1 {[%clk 0:02:54.2]} 8...
Nb3 {[%clk 0:02:46.8]} 9. Nxb3 {[%clk 0:02:53.9]} 9... Ba4 {[%clk 0:02:47]} 10.
Nfd2 {[%clk 0:02:54]} 10... Qb6 {[%clk 0:02:45.5]} 11. Be2 {[%clk 0:02:51.5]}
11... Ne7 {[%clk 0:02:44.8]} 12. O-O {[%clk 0:02:51.1]} 12... Nc6 {[%clk
0:02:44.9]} 13. Qe1 {[%clk 0:02:48.2]} 13... Bxb3 {[%clk 0:02:42.4]} 14. Nxb3
{[%clk 0:02:48.3]} 14... Qxb3 {[%clk 0:02:43.3]} 15. Bd1 {[%clk 0:02:48.5]}
15... Qb6 {[%clk 0:02:43.3]} 16. b4 {[%clk 0:02:48.2]} 16... cxb3 {[%clk
0:02:43.3]} 17. Rxb3 {[%clk 0:02:48.4]} 17... Qa5 {[%clk 0:02:42]} 18. Rxb7
{[%clk 0:02:45.3]} 18... Bxa3 {[%clk 0:02:41.2]} 19. Bxa3 {[%clk 0:02:16.4]}
19... Qxa3 {[%clk 0:02:42.1]} 20. f4 {[%clk 0:01:50.1]} 20... O-O {[%clk
0:02:39.6]} 21. f5 {[%clk 0:01:49.1]} 21... Na5 {[%clk 0:02:38.1]} 22. Rc7
{[%clk 0:01:42.9]} 22... exf5 {[%clk 0:02:33.2]} 23. Rxf5 {[%clk 0:01:39.5]}
23... Nc4 {[%clk 0:02:30.2]} 24. e6 {[%clk 0:01:32.8]} 24... fxe6 {[%clk
0:02:26.1]} 25. Qxe6+ {[%clk 0:01:30.1]} 25... Kh8 {[%clk 0:02:25.9]} 26. Qd7
{[%clk 0:01:06.6]} 26... Rg8 {[%clk 0:02:15.1]} 27. Rh5 {[%clk 0:00:56.2]} 27...
Qxc3 {[%clk 0:01:47.7]} 28. Rxh7+ {[%clk 0:00:51.6]} 28... Kxh7 {[%clk
0:01:48.6]} 29. Qf5+ {[%clk 0:00:51.1]} 29... Kh6 {[%clk 0:01:46.8]} 30. Qh5#
{[%clk 0:00:51.3]} 1-0

[Event "Late-Titled-Tuesday-Blitz-September-26-2023"]
[Site "Chess.com"]
[Date "2023.09.26"]
[Round "2"]
[White "A-Fier"]
[Black "Rital44"]
[Result "1-0"]
[WhiteElo "2798"]
[BlackElo "2516"]
[TimeControl "180+1"]
[EndTime "14:15:24 PDT"]
[Termination "A-Fier won on time"]

1. e4 {[%clk 0:03:00.9]} 1... e5 {[%clk 0:02:59]} 2. f4 {[%clk 0:02:55.3]} 2...
exf4 {[%clk 0:02:58.6]} 3. Nf3 {[%clk 0:02:55.3]} 3... d6 {[%clk 0:02:50.1]} 4.
d4 {[%clk 0:02:50.8]} 4... g5 {[%clk 0:02:49.3]} 5. h4 {[%clk 0:02:51.5]} 5...
g4 {[%clk 0:02:48.1]} 6. Ng5 {[%clk 0:02:51.9]} 6... h6 {[%clk 0:02:26.8]} 7.
Nxf7 {[%clk 0:02:51.6]} 7... Kxf7 {[%clk 0:02:27.7]} 8. Bc4+ {[%clk 0:02:51.5]}
8... Ke8 {[%clk 0:02:12.5]} 9. Bxf4 {[%clk 0:02:51.2]} 9... Bg7 {[%clk
0:02:03.7]} 10. O-O {[%clk 0:02:51.7]} 10... Nc6 {[%clk 0:01:54.5]} 11. c3
{[%clk 0:02:51.6]} 11... Qxh4 {[%clk 0:01:41.5]} 12. Bf7+ {[%clk 0:02:51.7]}
12... Kd8 {[%clk 0:01:23.7]} 13. g3 {[%clk 0:02:48.5]} 13... Qe7 {[%clk
0:01:20.2]} 14. Qb3 {[%clk 0:02:47.9]} 14... Nf6 {[%clk 0:01:01.1]} 15. Na3
{[%clk 0:02:47.8]} 15... Na5 {[%clk 0:00:55.2]} 16. Qa4 {[%clk 0:02:46.1]} 16...
Qxf7 {[%clk 0:00:47.6]} 17. Qxa5 {[%clk 0:02:46.5]} 17... b6 {[%clk 0:00:43]}
18. Qb5 {[%clk 0:02:44.3]} 18... Bd7 {[%clk 0:00:41.5]} 19. Qd3 {[%clk
0:02:44.7]} 19... Qe7 {[%clk 0:00:36.6]} 20. e5 {[%clk 0:02:44.7]} 20... Nd5
{[%clk 0:00:19.4]} 21. Qe4 {[%clk 0:02:43.6]} 21... Bc6 {[%clk 0:00:19.2]} 22.
c4 {[%clk 0:02:42.3]} 22... Nb4 {[%clk 0:00:19]} 23. d5 {[%clk 0:02:42.5]} 23...
Bb7 {[%clk 0:00:18.9]} 24. e6 {[%clk 0:02:41.9]} 24... Na6 {[%clk 0:00:18.8]}
25. Be3 {[%clk 0:02:41.7]} 25... Be5 {[%clk 0:00:16.8]} 26. Rf7 {[%clk
0:02:40.8]} 26... Qe8 {[%clk 0:00:16.7]} 27. Raf1 {[%clk 0:02:38.1]} 27... Nc5
{[%clk 0:00:15.9]} 28. Bxc5 {[%clk 0:02:36.3]} 28... bxc5 {[%clk 0:00:16.8]} 29.
Nb5 {[%clk 0:02:36.9]} 29... Bd4+ {[%clk 0:00:09.7]} 30. Kg2 {[%clk 0:02:35.1]}
30... Rc8 {[%clk 0:00:06]} 31. Rd7+ {[%clk 0:02:34.7]} 31... Qxd7 {[%clk
0:00:06.5]} 32. exd7 {[%clk 0:02:35.2]} 32... Be5 {[%clk 0:00:03.8]} 33. dxc8=Q+
{[%clk 0:02:34.7]} 33... Bxc8 {[%clk 0:00:03.2]} 34. Qg6 {[%clk 0:02:34.5]}
34... Bd7 {[%clk 0:00:03.2]} 35. Nxa7 {[%clk 0:02:34.5]} 1-0

[Event "Late-Titled-Tuesday-Blitz-September-26-2023"]
[Site "Chess.com"]
[Date "2023.09.26"]
[Round "2"]
[White "Kostukov_Alex"]
[Black "cthake"]
[Result "1-0"]
[WhiteElo "2408"]
[BlackElo "1892"]
[TimeControl "180+1"]
[EndTime "14:15:25 PDT"]
[Termination "Kostukov_Alex won by resignation"]

1. g3 {[%clk 0:03:00.9]} 1... d5 {[%clk 0:02:59]} 2. Bg2 {[%clk 0:02:57.3]} 2...
c6 {[%clk 0:02:59]} 3. d3 {[%clk 0:02:57.7]} 3... e5 {[%clk 0:02:58.7]} 4. e4
{[%clk 0:02:58]} 4... Nf6 {[%clk 0:02:57.6]} 5. Qe2 {[%clk 0:02:56.4]} 5... Bd6
{[%clk 0:02:55.1]} 6. Nf3 {[%clk 0:02:55.5]} 6... Nbd7 {[%clk 0:02:28.8]} 7. O-O
{[%clk 0:02:54]} 7... O-O {[%clk 0:02:28.5]} 8. c4 {[%clk 0:02:51.7]} 8... d4
{[%clk 0:02:27.3]} 9. Nh4 {[%clk 0:02:49.8]} 9... Re8 {[%clk 0:02:12.8]} 10. Nf5
{[%clk 0:02:47.9]} 10... Bf8 {[%clk 0:02:09.8]} 11. f4 {[%clk 0:02:41]} 11...
exf4 {[%clk 0:02:01.6]} 12. Bxf4 {[%clk 0:02:34.4]} 12... Ne5 {[%clk 0:01:53.2]}
13. Bg5 {[%clk 0:02:22.7]} 13... Bxf5 {[%clk 0:01:35]} 14. Rxf5 {[%clk
0:02:20.2]} 14... Qd6 {[%clk 0:01:19.1]} 15. Bxf6 {[%clk 0:02:13.9]} 15... gxf6
{[%clk 0:01:16.6]} 16. Nd2 {[%clk 0:02:13.1]} 16... Bg7 {[%clk 0:01:13.1]} 17.
a3 {[%clk 0:02:10.3]} 17... a5 {[%clk 0:01:12.1]} 18. Nf3 {[%clk 0:02:06.7]}
18... c5 {[%clk 0:01:06]} 19. Nh4 {[%clk 0:01:55.3]} 19... Rad8 {[%clk
0:01:02.9]} 20. Raf1 {[%clk 0:01:54]} 20... b6 {[%clk 0:01:00.6]} 21. Bh3 {[%clk
0:01:47.9]} 21... Kh8 {[%clk 0:00:51.7]} 22. Rh5 {[%clk 0:01:44.6]} 22... Ng6
{[%clk 0:00:36.7]} 23. Nf5 {[%clk 0:01:43]} 23... Re5 {[%clk 0:00:32.4]} 24.
Nxd6 {[%clk 0:01:40.9]} 1-0

[Event "Late-Titled-Tuesday-Blitz-September-26-2023"]
[Site "Chess.com"]
[Date "2023.09.26"]
[Round "2"]
[White "bettercallcafu"]
[Black "Chessbard1972"]
[Result "1-0"]
[WhiteElo "2680"]
[BlackElo "2382"]
[TimeControl "180+1"]
[EndTime "14:15:35 PDT"]
[Termination "bettercallcafu won by resignation"]

1. d4 {[%clk 0:03:00.9]} 1... Nf6 {[%clk 0:02:57.9]} 2. Nc3 {[%clk 0:03:01.8]}
2... d5 {[%clk 0:02:57.1]} 3. Bf4 {[%clk 0:03:02.3]} 3... Bf5 {[%clk 0:02:55]}
4. e3 {[%clk 0:03:01.8]} 4... e6 {[%clk 0:02:54.1]} 5. Bd3 {[%clk 0:03:02.5]}
5... Bb4 {[%clk 0:02:52]} 6. Ne2 {[%clk 0:03:01.5]} 6... a6 {[%clk 0:02:50]} 7.
O-O {[%clk 0:03:02]} 7... Bxd3 {[%clk 0:02:31.5]} 8. cxd3 {[%clk 0:03:01.7]}
8... c5 {[%clk 0:02:29.3]} 9. Rc1 {[%clk 0:03:01.5]} 9... Nc6 {[%clk 0:02:28]}
10. dxc5 {[%clk 0:03:01.5]} 10... Bxc5 {[%clk 0:02:25.9]} 11. Qb3 {[%clk
0:02:55.7]} 11... Qe7 {[%clk 0:02:15.1]} 12. d4 {[%clk 0:02:52.9]} 12... Ba7
{[%clk 0:02:12.4]} 13. Na4 {[%clk 0:02:52.7]} 13... O-O {[%clk 0:02:05.2]} 14.
Nc5 {[%clk 0:02:51.4]} 14... Nd8 {[%clk 0:01:51.6]} 15. h3 {[%clk 0:02:43.4]}
15... h6 {[%clk 0:01:49.9]} 16. Rc2 {[%clk 0:02:16.6]} 16... Ne4 {[%clk
0:01:27.1]} 17. Nxe4 {[%clk 0:02:15.6]} 17... dxe4 {[%clk 0:01:27]} 18. Nc3
{[%clk 0:02:15.3]} 18... f5 {[%clk 0:01:22.4]} 19. d5 {[%clk 0:02:15.7]} 19...
exd5 {[%clk 0:01:10.4]} 20. Nxd5 {[%clk 0:02:15.5]} 20... Qf7 {[%clk 0:01:10]}
21. Rc7 {[%clk 0:02:15.5]} 21... Qe6 {[%clk 0:01:01.4]} 22. Re7 {[%clk
0:02:07.2]} 22... Qg6 {[%clk 0:00:59.9]} 23. Nc7+ {[%clk 0:01:59.7]} 23... Kh8
{[%clk 0:00:57.5]} 24. Nxa8 {[%clk 0:01:50.4]} 24... Nc6 {[%clk 0:00:56]} 25.
Re6 {[%clk 0:01:45.7]} 25... Qf7 {[%clk 0:00:52.1]} 26. Nc7 {[%clk 0:01:43.5]}
26... g5 {[%clk 0:00:43.6]} 27. Bd6 {[%clk 0:01:41.5]} 27... Rc8 {[%clk
0:00:34.7]} 28. Rxh6+ {[%clk 0:01:40.9]} 28... Kg7 {[%clk 0:00:34.6]} 29. Rh7+
{[%clk 0:01:40.7]} 1-0

[Event "Late-Titled-Tuesday-Blitz-September-26-2023"]
[Site "Chess.com"]
[Date "2023.09.26"]
[Round "2"]
[White "djano"]
[Black "MagnusCarlsen"]
[Result "0-1"]
[WhiteElo "2662"]
[BlackElo "3280"]
[TimeControl "180+1"]
[EndTime "14:15:44 PDT"]
[Termination "MagnusCarlsen won on time"]

1. e4 {[%clk 0:03:00.9]} 1... c5 {[%clk 0:02:56]} 2. Nc3 {[%clk 0:03:00.4]} 2...
a6 {[%clk 0:02:54.6]} 3. d4 {[%clk 0:02:54.4]} 3... cxd4 {[%clk 0:02:54.4]} 4.
Qxd4 {[%clk 0:02:55.3]} 4... Nc6 {[%clk 0:02:54.5]} 5. Qd2 {[%clk 0:02:55.6]}
5... e6 {[%clk 0:02:48.4]} 6. b3 {[%clk 0:02:55.4]} 6... d5 {[%clk 0:02:48.7]}
7. exd5 {[%clk 0:02:48.1]} 7... exd5 {[%clk 0:02:49.6]} 8. Nxd5 {[%clk 0:02:21]}
8... Nf6 {[%clk 0:02:48.8]} 9. Nc3 {[%clk 0:02:04.8]} 9... Bf5 {[%clk
0:02:43.5]} 10. Bd3 {[%clk 0:01:51.2]} 10... Bxd3 {[%clk 0:02:38.9]} 11. Qxd3
{[%clk 0:01:46.5]} 11... Nb4 {[%clk 0:02:34.3]} 12. Qe2+ {[%clk 0:01:36.4]}
12... Qe7 {[%clk 0:02:34.1]} 13. Kf1 {[%clk 0:00:58.6]} 13... O-O-O {[%clk
0:02:27.1]} 14. Qxe7 {[%clk 0:00:55.6]} 14... Bxe7 {[%clk 0:02:27]} 15. Bf4
{[%clk 0:00:47.5]} 15... Rhe8 {[%clk 0:02:12.5]} 16. Nf3 {[%clk 0:00:47.6]}
16... Nh5 {[%clk 0:02:01.7]} 17. Bd2 {[%clk 0:00:40.3]} 17... Bf6 {[%clk
0:01:58.5]} 18. a3 {[%clk 0:00:09.8]} 18... Rxd2 {[%clk 0:01:57.4]} 19. Nxd2
{[%clk 0:00:08.4]} 19... Bxc3 {[%clk 0:01:58]} 20. Rd1 {[%clk 0:00:03.6]} 20...
Rd8 {[%clk 0:01:50]} 21. axb4 {[%clk 0:00:02.8]} 21... Bxd2 {[%clk 0:01:50.2]}
22. Ke2 {[%clk 0:00:02.6]} 22... Nf4+ {[%clk 0:01:48.1]} 23. Kf3 {[%clk
0:00:02.9]} 23... Ne6 {[%clk 0:01:48.7]} 0-1

[Event "Late-Titled-Tuesday-Blitz-September-26-2023"]
[Site "Chess.com"]
[Date "2023.09.26"]
[Round "2"]
[White "tarno17"]
[Black "Druid24"]
[Result "0-1"]
[WhiteElo "2165"]
[BlackElo "2668"]
[TimeControl "180+1"]
[EndTime "14:15:48 PDT"]
[Termination "Druid24 won by resignation"]

1. e4 {[%clk 0:03:00.9]} 1... c5 {[%clk 0:02:58.4]} 2. Nf3 {[%clk 0:03:01]} 2...
e6 {[%clk 0:02:58.7]} 3. c3 {[%clk 0:02:58.6]} 3... d5 {[%clk 0:02:57.5]} 4.
exd5 {[%clk 0:02:58]} 4... exd5 {[%clk 0:02:57.8]} 5. d4 {[%clk 0:02:58.5]} 5...
Nf6 {[%clk 0:02:57.6]} 6. Bb5+ {[%clk 0:02:57.7]} 6... Bd7 {[%clk 0:02:57.2]} 7.
Bxd7+ {[%clk 0:02:58.3]} 7... Nbxd7 {[%clk 0:02:57.7]} 8. O-O {[%clk 0:02:58.5]}
8... Be7 {[%clk 0:02:58]} 9. Re1 {[%clk 0:02:50.1]} 9... O-O {[%clk 0:02:57.4]}
10. Bf4 {[%clk 0:02:41.7]} 10... Rc8 {[%clk 0:02:55.9]} 11. Nbd2 {[%clk
0:02:39]} 11... Re8 {[%clk 0:02:52.3]} 12. Nf1 {[%clk 0:02:36]} 12... cxd4
{[%clk 0:02:51.7]} 13. Nxd4 {[%clk 0:02:35.6]} 13... Nb6 {[%clk 0:02:51]} 14.
Ng3 {[%clk 0:02:33.3]} 14... Nc4 {[%clk 0:02:49.6]} 15. Rb1 {[%clk 0:02:23.1]}
15... Bc5 {[%clk 0:02:46]} 16. Ngf5 {[%clk 0:02:15.3]} 16... Rxe1+ {[%clk
0:02:43.3]} 17. Qxe1 {[%clk 0:02:15.2]} 17... Qd7 {[%clk 0:02:43.7]} 18. Qe2
{[%clk 0:01:59]} 18... Re8 {[%clk 0:02:39.7]} 19. Qf3 {[%clk 0:01:49.4]} 19...
Nxb2 {[%clk 0:02:38.4]} 20. Nxg7 {[%clk 0:01:16.3]} 20... Kxg7 {[%clk 0:02:30]}
21. Bh6+ {[%clk 0:00:52.8]} 21... Kg6 {[%clk 0:02:21.2]} 22. Qf4 {[%clk
0:00:29.6]} 22... Qg4 {[%clk 0:02:15.1]} 23. Qd2 {[%clk 0:00:11.8]} 23... Nc4
{[%clk 0:02:13.1]} 24. Qc1 {[%clk 0:00:06.5]} 24... Bxd4 {[%clk 0:02:09.6]} 25.
cxd4 {[%clk 0:00:06]} 25... Re2 {[%clk 0:02:08.2]} 26. h3 {[%clk 0:00:05.2]}
26... Qh5 {[%clk 0:02:05.9]} 27. Bf4 {[%clk 0:00:02.9]} 27... Ne4 {[%clk
0:02:01.8]} 28. Qd1 {[%clk 0:00:02.6]} 28... Rxf2 {[%clk 0:01:58.6]} 29. Rxb7
{[%clk 0:00:02.6]} 29... Qxd1+ {[%clk 0:01:57.7]} 0-1

[Event "Late-Titled-Tuesday-Blitz-September-26-2023"]
[Site "Chess.com"]
[Date "2023.09.26"]
[Round "2"]
[White "maksimys18"]
[Black "Verony64"]
[Result "1-0"]
[WhiteElo "2494"]
[BlackElo "2289"]
[TimeControl "180+1"]
[EndTime "14:15:50 PDT"]
[Termination "maksimys18 won by checkmate"]

1. d4 {[%clk 0:03:00.5]} 1... d6 {[%clk 0:02:58.1]} 2. Nf3 {[%clk 0:03:00.8]}
2... c6 {[%clk 0:02:58.5]} 3. c4 {[%clk 0:03:01.1]} 3... Nd7 {[%clk 0:02:59]} 4.
Nc3 {[%clk 0:03:01.5]} 4... e5 {[%clk 0:02:58.8]} 5. Bg5 {[%clk 0:03:01]} 5...
f6 {[%clk 0:02:58.1]} 6. Bh4 {[%clk 0:03:01]} 6... Ne7 {[%clk 0:02:57.6]} 7. e3
{[%clk 0:03:00.8]} 7... Nf5 {[%clk 0:02:47.3]} 8. Be2 {[%clk 0:02:57.4]} 8...
Nxh4 {[%clk 0:02:40.9]} 9. Nxh4 {[%clk 0:02:57]} 9... g6 {[%clk 0:02:41.6]} 10.
f4 {[%clk 0:02:55.3]} 10... Bg7 {[%clk 0:02:41.8]} 11. O-O {[%clk 0:02:54.1]}
11... exd4 {[%clk 0:02:32.6]} 12. exd4 {[%clk 0:02:53.7]} 12... f5 {[%clk
0:02:33]} 13. Nf3 {[%clk 0:02:50.6]} 13... O-O {[%clk 0:02:32.3]} 14. d5 {[%clk
0:02:50.2]} 14... c5 {[%clk 0:02:31.8]} 15. Ng5 {[%clk 0:02:49]} 15... Nf6
{[%clk 0:02:31.5]} 16. Bf3 {[%clk 0:02:46]} 16... Re8 {[%clk 0:02:30]} 17. Re1
{[%clk 0:02:45.6]} 17... Bd7 {[%clk 0:02:10]} 18. Ne6 {[%clk 0:02:43.3]} 18...
Qb6 {[%clk 0:01:46.8]} 19. Qb3 {[%clk 0:02:41.5]} 19... Ng4 {[%clk 0:01:22.6]}
20. Bxg4 {[%clk 0:02:37.8]} 20... fxg4 {[%clk 0:01:21.3]} 21. Qc2 {[%clk
0:02:31.4]} 21... Bxe6 {[%clk 0:01:01]} 22. dxe6 {[%clk 0:02:30.6]} 22... Bd4+
{[%clk 0:01:00.8]} 23. Kh1 {[%clk 0:02:30.1]} 23... Qd8 {[%clk 0:00:47.4]} 24.
Nd5 {[%clk 0:02:26.6]} 24... Qh4 {[%clk 0:00:46.1]} 25. g3 {[%clk 0:02:12.4]}
25... Qh3 {[%clk 0:00:37.3]} 26. Re4 {[%clk 0:02:08.1]} 26... Kg7 {[%clk
0:00:34]} 27. Rae1 {[%clk 0:02:06.7]} 27... Rac8 {[%clk 0:00:21.8]} 28. e7
{[%clk 0:02:03.7]} 28... Rc6 {[%clk 0:00:20]} 29. f5 {[%clk 0:02:01.6]} 29...
gxf5 {[%clk 0:00:18.7]} 30. Rxd4 {[%clk 0:02:00.8]} 30... cxd4 {[%clk
0:00:17.9]} 31. Qxf5 {[%clk 0:02:00.8]} 31... Qh6 {[%clk 0:00:14.7]} 32. Rf1
{[%clk 0:01:56.7]} 32... Qg6 {[%clk 0:00:14.1]} 33. Qf8+ {[%clk 0:01:55.7]}
33... Rxf8 {[%clk 0:00:14.1]} 34. exf8=Q# {[%clk 0:01:55]} 1-0

[Event "Late-Titled-Tuesday-Blitz-September-26-2023"]
[Site "Chess.com"]
[Date "2023.09.26"]
[Round "2"]
[White "DuleMudule"]
[Black "Real_taiatai"]
[Result "1-0"]
[WhiteElo "2802"]
[BlackElo "2525"]
[TimeControl "180+1"]
[EndTime "14:16:00 PDT"]
[Termination "DuleMudule won by checkmate"]

1. d4 {[%clk 0:03:00.9]} 1... Nf6 {[%clk 0:02:59.8]} 2. Bg5 {[%clk 0:03:00.8]}
2... d5 {[%clk 0:02:52.9]} 3. e3 {[%clk 0:03:00.3]} 3... Nbd7 {[%clk 0:02:51.3]}
4. c4 {[%clk 0:02:59.8]} 4... e6 {[%clk 0:02:49.5]} 5. Nc3 {[%clk 0:03:00]} 5...
c6 {[%clk 0:02:47.6]} 6. cxd5 {[%clk 0:02:59.6]} 6... exd5 {[%clk 0:02:47.8]} 7.
Bd3 {[%clk 0:02:59.8]} 7... h6 {[%clk 0:02:45.1]} 8. Bf4 {[%clk 0:02:52.7]} 8...
Be7 {[%clk 0:02:38.9]} 9. h3 {[%clk 0:02:53]} 9... Nb6 {[%clk 0:02:35]} 10. Nf3
{[%clk 0:02:52.6]} 10... Be6 {[%clk 0:02:34.7]} 11. Qc2 {[%clk 0:02:52.3]} 11...
Bd6 {[%clk 0:02:11.9]} 12. Bxd6 {[%clk 0:02:47.2]} 12... Qxd6 {[%clk 0:02:11.9]}
13. Ne5 {[%clk 0:02:47.9]} 13... O-O {[%clk 0:02:05.1]} 14. O-O {[%clk
0:02:45.9]} 14... Nfd7 {[%clk 0:01:56.1]} 15. f4 {[%clk 0:02:44.8]} 15... f6
{[%clk 0:01:54.5]} 16. Ng6 {[%clk 0:02:43.1]} 16... Rfe8 {[%clk 0:01:51.9]} 17.
Rae1 {[%clk 0:02:41.6]} 17... Bf7 {[%clk 0:01:41.7]} 18. Nh4 {[%clk 0:02:40.8]}
18... Nf8 {[%clk 0:01:36.8]} 19. Qf2 {[%clk 0:02:34.6]} 19... Qd7 {[%clk
0:01:20.5]} 20. Qg3 {[%clk 0:02:26]} 20... Be6 {[%clk 0:01:11.5]} 21. Kh2 {[%clk
0:02:23.9]} 21... Kh8 {[%clk 0:01:01.5]} 22. b3 {[%clk 0:02:15.1]} 22... Nc8
{[%clk 0:00:59.2]} 23. e4 {[%clk 0:02:14.5]} 23... dxe4 {[%clk 0:00:58.2]} 24.
Nxe4 {[%clk 0:02:15.4]} 24... Nd6 {[%clk 0:00:52.2]} 25. Nc5 {[%clk 0:02:14.6]}
25... Qf7 {[%clk 0:00:50]} 26. Ng6+ {[%clk 0:02:05.6]} 26... Nxg6 {[%clk
0:00:25.9]} 27. Bxg6 {[%clk 0:02:04.5]} 27... Nf5 {[%clk 0:00:21.3]} 28. Qg4
{[%clk 0:01:55.8]} 28... Nxd4 {[%clk 0:00:10.7]} 29. Nxe6 {[%clk 0:01:55]} 29...
Qd7 {[%clk 0:00:07.8]} 30. Bxe8 {[%clk 0:01:54.1]} 30... Qd5 {[%clk 0:00:03.1]}
31. Qxg7# {[%clk 0:01:52.6]} 1-0

[Event "Late-Titled-Tuesday-Blitz-September-26-2023"]
[Site "Chess.com"]
[Date "2023.09.26"]
[Round "2"]
[White "Gyulamiryan-koryun"]
[Black "EsmeraldasAnderson03"]
[Result "0-1"]
[WhiteElo "2008"]
[BlackElo "2416"]
[TimeControl "180+1"]
[EndTime "14:16:10 PDT"]
[Termination "EsmeraldasAnderson03 won on time"]

1. e4 {[%clk 0:02:52.1]} 1... c5 {[%clk 0:02:44.6]} 2. Nf3 {[%clk 0:02:50.7]}
2... d6 {[%clk 0:02:44.9]} 3. d4 {[%clk 0:02:50.4]} 3... cxd4 {[%clk 0:02:45.8]}
4. Nxd4 {[%clk 0:02:50.3]} 4... Nf6 {[%clk 0:02:46.7]} 5. Nc3 {[%clk 0:02:49.4]}
5... a6 {[%clk 0:02:47]} 6. Be3 {[%clk 0:02:48.8]} 6... e5 {[%clk 0:02:44.9]} 7.
Nb3 {[%clk 0:02:47.4]} 7... Be6 {[%clk 0:02:44.1]} 8. f3 {[%clk 0:02:47]} 8...
Be7 {[%clk 0:02:44.2]} 9. Qd2 {[%clk 0:02:47.1]} 9... b5 {[%clk 0:02:44.8]} 10.
O-O-O {[%clk 0:02:43.3]} 10... Nbd7 {[%clk 0:02:45]} 11. Nd5 {[%clk 0:02:33.9]}
11... Bxd5 {[%clk 0:02:44.5]} 12. exd5 {[%clk 0:02:32.5]} 12... Nb6 {[%clk
0:02:44.9]} 13. Na5 {[%clk 0:02:20]} 13... Nbxd5 {[%clk 0:02:42.9]} 14. Nc6
{[%clk 0:02:19.5]} 14... Qc7 {[%clk 0:02:43.4]} 15. Nxe7 {[%clk 0:02:14.7]}
15... Nxe3 {[%clk 0:02:38.4]} 16. Qxd6 {[%clk 0:01:45.6]} 16... Qxd6 {[%clk
0:02:37.6]} 17. Rxd6 {[%clk 0:01:44.7]} 17... Kxe7 {[%clk 0:02:38.2]} 18. Rc6
{[%clk 0:01:35.9]} 18... Rhc8 {[%clk 0:02:34.2]} 19. Rxc8 {[%clk 0:01:33.9]}
19... Rxc8 {[%clk 0:02:32.9]} 20. c3 {[%clk 0:01:34]} 20... Nxf1 {[%clk
0:02:24.6]} 21. Rxf1 {[%clk 0:01:33.1]} 21... Nd5 {[%clk 0:02:25.5]} 22. Rd1
{[%clk 0:01:19.6]} 22... Ke6 {[%clk 0:02:20.3]} 23. g3 {[%clk 0:01:12]} 23... f5
{[%clk 0:02:19.3]} 24. g4 {[%clk 0:01:09.8]} 24... g6 {[%clk 0:02:17.1]} 25. h3
{[%clk 0:01:07]} 25... Nf4 {[%clk 0:02:16.7]} 26. h4 {[%clk 0:01:00.7]} 26... h5
{[%clk 0:02:09.7]} 27. gxh5 {[%clk 0:00:43.7]} 27... gxh5 {[%clk 0:02:10.6]} 28.
Kc2 {[%clk 0:00:40.7]} 28... Ng2 {[%clk 0:02:04.1]} 29. Rh1 {[%clk 0:00:22.3]}
29... Rg8 {[%clk 0:01:59.6]} 30. Kb3 {[%clk 0:00:08.6]} 30... Rg3 {[%clk
0:01:55.4]} 31. a4 {[%clk 0:00:02.2]} 31... bxa4+ {[%clk 0:01:54.9]} 32. Kxa4
{[%clk 0:00:02]} 32... Rxf3 {[%clk 0:01:54.1]} 33. Ka5 {[%clk 0:00:01.3]} 33...
e4 {[%clk 0:01:53.9]} 0-1

[Event "Late-Titled-Tuesday-Blitz-September-26-2023"]
[Site "Chess.com"]
[Date "2023.09.26"]
[Round "2"]
[White "NotFischer"]
[Black "CheckThis4"]
[Result "0-1"]
[WhiteElo "2258"]
[BlackElo "2679"]
[TimeControl "180+1"]
[EndTime "14:16:25 PDT"]
[Termination "CheckThis4 won by resignation"]

1. e4 {[%clk 0:03:00.9]} 1... c5 {[%clk 0:02:59.3]} 2. Nf3 {[%clk 0:03:00.5]}
2... d6 {[%clk 0:02:59.3]} 3. d4 {[%clk 0:03:00.3]} 3... cxd4 {[%clk 0:02:59.3]}
4. Nxd4 {[%clk 0:03:01.2]} 4... Nf6 {[%clk 0:02:59.4]} 5. Nc3 {[%clk 0:03:00.8]}
5... g6 {[%clk 0:03:00]} 6. Be3 {[%clk 0:02:55]} 6... Bg7 {[%clk 0:03:00.4]} 7.
f3 {[%clk 0:02:52.3]} 7... Nc6 {[%clk 0:03:00.9]} 8. Nb3 {[%clk 0:02:38.8]} 8...
O-O {[%clk 0:02:58.2]} 9. Qd2 {[%clk 0:02:37.6]} 9... Be6 {[%clk 0:02:52.8]} 10.
O-O-O {[%clk 0:02:34.1]} 10... a5 {[%clk 0:02:50.6]} 11. Bb5 {[%clk 0:02:19.4]}
11... Ne5 {[%clk 0:02:31.4]} 12. Nd5 {[%clk 0:02:00.8]} 12... Bxd5 {[%clk
0:02:16.4]} 13. exd5 {[%clk 0:02:01.7]} 13... a4 {[%clk 0:02:16.5]} 14. Nd4
{[%clk 0:01:46.6]} 14... a3 {[%clk 0:02:05.4]} 15. b3 {[%clk 0:01:42.7]} 15...
Nxd5 {[%clk 0:02:03.2]} 16. Bh6 {[%clk 0:01:36.2]} 16... Bxh6 {[%clk 0:01:33.3]}
17. Qxh6 {[%clk 0:01:37.1]} 17... Nc3 {[%clk 0:01:33.2]} 18. Bd3 {[%clk
0:01:34.6]} 18... Nxa2+ {[%clk 0:01:31.1]} 19. Kb1 {[%clk 0:01:27.5]} 19... Nc3+
{[%clk 0:01:30.6]} 20. Ka1 {[%clk 0:01:27.3]} 20... Nxd1 {[%clk 0:01:29.2]} 21.
Rxd1 {[%clk 0:00:56.4]} 21... Qa5 {[%clk 0:01:19.3]} 22. Ne2 {[%clk 0:00:18.9]}
22... Nxd3 {[%clk 0:01:18.4]} 23. Rxd3 {[%clk 0:00:18.2]} 23... Qe5+ {[%clk
0:01:09.1]} 24. Nd4 {[%clk 0:00:15.9]} 24... a2 {[%clk 0:01:03]} 0-1